bitfinex-derivatives/quotes_BTCF0:USTF0_20250630
["timestamp","ask_amount","ask_price","bid_price","bid_amount"]
[1751298151996,0.6394337,107390.0,107380.0,0.96032173]
[1751298152198,0.7594337,107390.0,107380.0,0.96032173]
[1751298154001,0.9594337,107390.0,107380.0,0.96032173]
[1751298154201,1.2778262,107390.0,107380.0,0.96032173]
[1751298159005,1.2778262,107390.0,107380.0,0.22416173]
[1751298159202,1.2778262,107390.0,107380.0,0.96008173]
[1751298160009,1.2778262,107390.0,107380.0,0.36860173]
[1751298160310,1.2778262,107390.0,107380.0,0.96004173]
[1751298165408,0.9594337,107390.0,107380.0,0.96004173]
[1751298165712,1.2778262,107390.0,107380.0,0.96004173]
[1751298165913,0.5986337,107390.0,107380.0,0.96004173]
[1751298166914,0.5986337,107390.0,107380.0,1.01543686]
[1751298167311,0.1200399,107390.0,107380.0,1.69462936]
[1751298167507,0.3062335,107390.0,107380.0,1.72337883]
[1751298168109,0.1200399,107390.0,107380.0,1.72337883]
[1751298168310,0.5062335,107390.0,107380.0,1.72337883]
[1751298168506,0.1862335,107390.0,107380.0,1.04418633]
[1751298168712,0.5562335,107390.0,107380.0,1.36257883]
[1751298168910,0.1962335,107390.0,107380.0,1.36257883]
[1751298169716,0.5562335,107390.0,107380.0,1.36257883]
[1751298170018,1.267326,107390.0,107380.0,0.97820633]
[1751298170210,1.331126,107390.0,107380.0,0.97820633]
[1751298170411,1.331126,107390.0,107380.0,1.01507431]
[1751298171819,1.331126,107390.0,107380.0,0.97816633]
[1751298173724,1.299426,107390.0,107380.0,0.97816633]
[1751298174226,1.299426,107390.0,107380.0,1.01026633]
[1751298174623,0.9810335,107390.0,107380.0,1.01026633]
[1751298175321,0.9810335,107390.0,107380.0,0.27470633]
[1751298175515,1.299426,107390.0,107380.0,1.01014633]
[1751298175710,1.299426,107390.0,107380.0,0.20083513]
[1751298175911,1.517774,107390.0,107370.0,0.19983513]
[1751298176116,0.9298034,107380.0,107370.0,0.19983513]
[1751298176419,0.1862282,107370.0,107360.0,0.0739654]
[1751298176623,1.2719207,107370.0,107360.0,0.9215656]
[1751298177021,1.2398207,107370.0,107360.0,0.9215656]
[1751298177225,1.2398207,107370.0,107360.0,0.9535656]
[1751298178122,1.2398207,107370.0,107360.0,0.9840656]
[1751298178323,0.8570282,107370.0,107360.0,0.9840656]
[1751298179221,0.8882282,107370.0,107360.0,0.9840656]
[1751298179621,1.2066207,107370.0,107360.0,0.9840656]
[1751298180527,1.2397207,107370.0,107360.0,0.9840656]
[1751298181021,0.8882282,107370.0,107360.0,0.9840656]
[1751298181520,0.8882282,107370.0,107360.0,0.9880656]
[1751298181922,1.2066207,107370.0,107360.0,0.9880656]
[1751298182423,1.2066207,107370.0,107360.0,0.3346856]
[1751298182619,1.2397207,107370.0,107360.0,0.004]
[1751298183130,1.2397207,107370.0,107360.0,0.59476]
[1751298183335,1.7397207,107370.0,107360.0,0.59476]
[1751298183826,1.7397207,107370.0,107340.0,0.39377961]
[1751298183827,2.3547236,107370.0,107340.0,0.39377961]
[1751298184027,0.8654555,107350.0,107340.0,0.376807]
[1751298184334,1.2054555,107350.0,107340.0,0.9209571]
[1751298184538,1.2674555,107350.0,107340.0,0.9209571]
[1751298185128,1.2674555,107350.0,107340.0,0.9524571]
[1751298185332,1.2674555,107350.0,107340.0,0.3617371]
[1751298185531,1.2674555,107350.0,107340.0,0.14396]
[1751298185734,1.2674555,107350.0,107340.0,0.1862804]
[1751298185932,1.2674555,107350.0,107340.0,0.7769604]
[1751298186135,1.2674555,107350.0,107340.0,0.9469604]
[1751298186638,1.2674555,107350.0,107340.0,0.1862804]
[1751298186839,1.2674555,107350.0,107340.0,0.7849604]
[1751298187941,1.2674555,107350.0,107340.0,0.59868]
[1751298188132,1.2674555,107350.0,107340.0,0.59168]
[1751298188335,1.7674555,107350.0,107340.0,0.59168]
[1751298189040,2.1282555,107350.0,107340.0,0.59168]
[1751298189242,2.1282555,107350.0,107340.0,0.001]
[1751298190647,0.1862804,107340.0,107330.0,0.73456]
[1751298190845,1.2968729,107340.0,107330.0,0.9208577]
[1751298191641,1.3059516,107340.0,107330.0,0.7346]
[1751298192140,1.3059516,107340.0,107330.0,0.145]
[1751298192335,1.3059516,107340.0,107330.0,0.73556]
[1751298192532,1.8059516,107340.0,107330.0,0.73556]
[1751298192729,1.8059516,107340.0,107330.0,0.145]
[1751298192937,3.4922876,107340.0,107330.0,0.001]
[1751298193643,3.3059516,107340.0,107330.0,0.001]
[1751298194036,3.3057566,107340.0,107330.0,0.001]
[1751298194535,3.3819989,107340.0,107330.0,0.001]
[1751298195343,0.05588177,107390.0,107330.0,1.22130225]
[1751298195543,0.0400399,107390.0,107380.0,0.8654034]
[1751298195732,0.0400399,107390.0,107380.0,1.4758834]
[1751298195733,3.99e-05,107390.0,107380.0,1.4758834]
[1751298195938,3.99e-05,107390.0,107380.0,1.5594834]
[1751298196541,3.99e-05,107390.0,107380.0,1.5494834]
[1751298197433,3.99e-05,107390.0,107380.0,1.55886161]
[1751298197836,3.99e-05,107390.0,107380.0,1.31686052]
[1751298198038,3.99e-05,107390.0,107380.0,1.6893929]
[1751298199641,3.99e-05,107390.0,107380.0,1.31686052]
[1751298199843,3.99e-05,107390.0,107380.0,1.6893929]
[1751298203245,0.1862334,107390.0,107380.0,1.6893929]
[1751298203443,0.1862334,107390.0,107380.0,1.6891129]
[1751298203644,0.1862334,107390.0,107380.0,1.31654052]
[1751298203848,0.1862334,107390.0,107380.0,0.72638052]
[1751298204040,0.1862334,107390.0,107380.0,0.71700231]
[1751298204241,0.1862334,107390.0,107380.0,1.30716231]
[1751298204842,0.5562334,107390.0,107380.0,1.30716231]
[1751298205145,0.5562334,107390.0,107380.0,0.71700231]
[1751298205448,0.5562334,107390.0,107380.0,1.30716231]
[1751298206644,0.5562334,107390.0,107380.0,0.71700231]
[1751298206847,0.92876578,107390.0,107380.0,1.30704221]
[1751298207045,0.95966578,107390.0,107380.0,1.30704221]
[1751298207244,0.95966578,107390.0,107380.0,1.27574221]
[1751298207446,0.99276578,107390.0,107380.0,0.43719141]
[1751298207842,1.49276578,107390.0,107380.0,0.43719141]
[1751298209342,1.60318578,107390.0,107380.0,0.63770964]
[1751298209550,1.60318578,107390.0,107380.0,0.48189884]
[1751298209745,1.63368578,107390.0,107380.0,0.45149884]
[1751298210341,1.63368578,107390.0,107380.0,0.63770964]
[1751298211057,1.2611534,107390.0,107380.0,0.63770964]
[1751298211548,1.63368578,107390.0,107380.0,0.63770964]
[1751298212359,1.49016578,107390.0,107380.0,0.63770964]
[1751298212549,2.22364578,107390.0,107380.0,0.63770964]
[1751298213957,2.22364578,107390.0,107380.0,0.45149884]
[1751298214357,2.22364578,107390.0,107380.0,0.37510743]
[1751298214560,0.1862108,107380.0,107370.0,0.3608]
[1751298214760,0.96024318,107380.0,107370.0,0.3608]
[1751298215252,0.96024318,107380.0,107370.0,0.5470282]
[1751298215450,0.96024318,107380.0,107370.0,0.3608]
[1751298218654,0.5877108,107380.0,107370.0,0.3608]
[1751298219062,0.96024318,107380.0,107370.0,0.3608]
[1751298219262,1.46024318,107380.0,107370.0,0.3608]
[1751298220161,1.0877108,107380.0,107370.0,0.3608]
[1751298220361,1.46024318,107380.0,107370.0,0.3608]
[1751298220560,2.05000318,107380.0,107370.0,0.3608]
[1751298220962,2.05000318,107380.0,107370.0,0.39759908]
[1751298221261,1.46024318,107380.0,107370.0,0.39759908]
[1751298221464,2.19348318,107380.0,107370.0,0.42939908]
[1751298222262,1.60376318,107380.0,107370.0,0.42939908]
[1751298223359,1.42884318,107380.0,107370.0,0.42939908]
[1751298223662,0.5,107380.0,107370.0,1.99484082]
[1751298223961,3.99e-05,107390.0,107380.0,0.1862109]
[1751298224156,0.1862334,107390.0,107380.0,1.05103405]
[1751298224360,0.1862334,107390.0,107380.0,1.01424328]
[1751298225258,0.1862334,107390.0,107380.0,1.05103405]
[1751298226063,0.1862334,107390.0,107380.0,1.01424328]
[1751298226458,0.1862334,107390.0,107380.0,1.10622021]
[1751298226658,0.1862334,107390.0,107380.0,1.06543929]
[1751298227366,0.1862334,107390.0,107380.0,0.69290691]
[1751298229562,0.1862334,107390.0,107380.0,0.69290135]
[1751298230166,0.1862334,107390.0,107380.0,0.74808751]
[1751298230765,0.1862334,107390.0,107380.0,0.74808807]
[1751298231264,0.1862334,107390.0,107380.0,0.69290191]
[1751298232168,0.1862334,107390.0,107380.0,0.67850167]
[1751298235569,0.1862334,107390.0,107380.0,0.6927847]
[1751298236869,0.1862334,107390.0,107380.0,1.06531708]
[1751298237772,0.1862334,107390.0,107380.0,1.01066637]
[1751298237973,0.1862334,107390.0,107380.0,1.2820247]
[1751298238171,0.1862334,107390.0,107380.0,1.59990637]
[1751298238370,0.1862334,107390.0,107380.0,1.58562334]
[1751298240069,0.1862334,107390.0,107380.0,1.26774167]
[1751298248575,0.1862334,107390.0,107380.0,1.58562334]
[1751298248968,0.1862334,107390.0,107380.0,1.26774167]
[1751298249170,0.1862334,107390.0,107380.0,1.58562334]
[1751298250176,0.1862334,107390.0,107380.0,1.60401873]
[1751298251277,0.1862334,107390.0,107380.0,1.60357873]
[1751298252676,0.1862334,107390.0,107380.0,1.28569706]
[1751298252978,0.1862334,107390.0,107380.0,1.60357873]
[1751298253476,0.1862334,107390.0,107380.0,1.28569706]
[1751298253878,0.1862334,107390.0,107380.0,1.60357873]
[1751298255075,3.99e-05,107390.0,107380.0,2.08661873]
[1751298255380,3.99e-05,107390.0,107380.0,2.10539797]
[1751298258177,3.99e-05,107390.0,107380.0,2.03143257]
[1751298259178,3.99e-05,107390.0,107380.0,2.10514556]
[1751298262084,3.99e-05,107390.0,107380.0,1.37330556]
[1751298262378,3.99e-05,107390.0,107380.0,2.10474556]
[1751298263188,0.1862334,107390.0,107380.0,1.37330556]
[1751298263380,0.1862334,107390.0,107380.0,1.89470556]
[1751298264184,3.99e-05,107390.0,107380.0,1.89470556]
[1751298265885,3.99e-05,107390.0,107380.0,1.90909908]
[1751298267187,3.99e-05,107390.0,107380.0,1.77901908]
[1751298267388,3.99e-05,107390.0,107380.0,2.14901908]
[1751298268284,3.99e-05,107390.0,107380.0,1.83113741]
[1751298268487,3.99e-05,107390.0,107380.0,2.10901908]
[1751298268684,3.99e-05,107390.0,107380.0,1.05981741]
[1751298268685,0.1862334,107390.0,107380.0,1.05981741]
[1751298268886,0.1862334,107390.0,107380.0,1.45797741]
[1751298269188,0.1862334,107390.0,107380.0,1.77585908]
[1751298269386,0.2174334,107390.0,107380.0,1.77585908]
[1751298269890,0.0312399,107390.0,107380.0,1.77585908]
[1751298270286,0.0312399,107390.0,107380.0,1.45797741]
[1751298270485,0.0312399,107390.0,107380.0,1.77585908]
[1751298271094,0.0312399,107390.0,107380.0,1.70214609]
[1751298271393,0.0312399,107390.0,107380.0,1.77585908]
[1751298271892,0.2174334,107390.0,107380.0,1.77591417]
[1751298272192,0.2174334,107390.0,107380.0,1.77583417]
[1751298272394,0.2485334,107390.0,107380.0,1.77583417]
[1751298272590,0.2485334,107390.0,107380.0,1.70212118]
[1751298272790,0.2485334,107390.0,107380.0,1.70208118]
[1751298272991,0.6185334,107390.0,107380.0,0.56145951]
[1751298273290,0.5885334,107390.0,107380.0,1.20475933]
[1751298273493,0.2790334,107390.0,107380.0,1.20475933]
[1751298273995,0.2790334,107390.0,107380.0,1.522641]
[1751298274595,0.2790334,107390.0,107380.0,1.20475933]
[1751298276096,0.2790334,107390.0,107380.0,1.522641]
[1751298276498,0.2790334,107390.0,107380.0,1.20475933]
[1751298277584,0.80641507,107390.0,107380.0,1.20459933]
[1751298277790,0.80641507,107390.0,107380.0,0.47266392]
[1751298277993,0.1862107,107380.0,107370.0,0.07371299]
[1751298278206,0.1862281,107370.0,107360.0,0.25995839]
[1751298278390,1.42962977,107370.0,107360.0,0.07371299]
[1751298278590,0.1862454,107360.0,107350.0,1.30174349]
[1751298278891,0.5884454,107360.0,107350.0,1.30174349]
[1751298279090,0.93692707,107360.0,107350.0,0.69555702]
[1751298279399,0.93692707,107360.0,107350.0,0.8206249]
[1751298280092,0.93692707,107360.0,107350.0,0.7740602]
[1751298280291,0.1862628,107350.0,107340.0,0.72199186]
[1751298280496,0.88634447,107350.0,107340.0,0.61962256]
[1751298280697,0.88634447,107350.0,107340.0,1.20738256]
[1751298280897,0.2484628,107350.0,107340.0,1.20738256]
[1751298281096,0.90634447,107350.0,107340.0,1.20738256]
[1751298281299,1.04886447,107350.0,107340.0,0.56425604]
[1751298281496,1.04886447,107350.0,107340.0,1.15209604]
[1751298281697,1.04886447,107350.0,107340.0,0.56425604]
[1751298282003,1.04886447,107350.0,107340.0,1.15205604]
[1751298282193,1.12429802,107350.0,107340.0,1.15207034]
[1751298282394,1.12429802,107350.0,107340.0,0.56427034]
[1751298282596,1.12429802,107350.0,107340.0,0.37799024]
[1751298282793,1.12429802,107350.0,107340.0,0.56427034]
[1751298283089,1.12429802,107350.0,107340.0,0.56727034]
[1751298283292,1.12429802,107350.0,107340.0,0.38099024]
[1751298283501,1.12429802,107350.0,107340.0,0.56727034]
[1751298283803,1.12429802,107350.0,107340.0,0.5500801]
[1751298283804,0.80641635,107350.0,107340.0,0.5500801]
[1751298284099,1.12429802,107350.0,107340.0,0.5500801]
[1751298286003,0.80641635,107350.0,107340.0,0.5500801]
[1751298286202,1.12429802,107350.0,107340.0,0.5500801]
[1751298288802,1.12429802,107350.0,107340.0,0.1892801]
[1751298289003,1.12433802,107350.0,107340.0,0.1892801]
[1751298289709,0.98177802,107350.0,107340.0,0.1892801]
[1751298289911,1.12433802,107350.0,107340.0,0.1892801]
[1751298290509,0.98177802,107350.0,107340.0,0.1892801]
[1751298290711,1.12433802,107350.0,107340.0,0.20382116]
[1751298293107,0.98177802,107350.0,107340.0,0.20382116]
[1751298293312,1.12433802,107350.0,107340.0,0.20382116]
[1751298293808,0.98177802,107350.0,107340.0,0.20382116]
[1751298294014,2.62433802,107350.0,107340.0,0.20382116]
[1751298294218,3.99e-05,107390.0,107380.0,0.1862104]
[1751298294516,3.99e-05,107390.0,107380.0,1.80245207]
[1751298294716,3.99e-05,107390.0,107380.0,2.3411413]
[1751298295311,0.186233,107390.0,107380.0,1.7535813]
[1751298295512,0.186233,107390.0,107380.0,2.00567598]
[1751298295707,0.186233,107390.0,107380.0,1.67321963]
[1751298295908,0.186233,107390.0,107380.0,1.98197987]
[1751298296204,0.328793,107390.0,107380.0,1.98197987]
[1751298296514,0.328793,107390.0,107380.0,1.991424]
[1751298296710,3.99e-05,107390.0,107380.0,1.991424]
[1751298296910,0.328793,107390.0,107380.0,1.98197987]
[1751298299018,0.328793,107390.0,107380.0,1.6640982]
[1751298299218,0.328793,107390.0,107380.0,1.98197987]
[1751298300618,0.648793,107390.0,107380.0,1.98197987]
[1751298300810,0.648793,107390.0,107380.0,1.6640982]
[1751298301519,0.648793,107390.0,107380.0,1.6639782]
[1751298302518,0.648793,107390.0,107380.0,1.98185987]
[1751298302916,0.5062337,107390.0,107380.0,1.99609158]
[1751298303120,0.6483137,107390.0,107380.0,1.99609158]
[1751298303320,0.6483137,107390.0,107380.0,1.98185987]
[1751298303522,0.96619537,107390.0,107380.0,1.303099]
[1751298303823,0.6483137,107390.0,107380.0,1.303099]
[1751298304315,0.6483137,107390.0,107380.0,1.62098067]
[1751298305112,0.6483137,107390.0,107380.0,1.303059]
[1751298305818,0.5062337,107390.0,107380.0,1.303059]
[1751298306012,0.6483137,107390.0,107380.0,1.303059]
[1751298306213,0.6483137,107390.0,107380.0,1.62094067]
[1751298308017,0.6483137,107390.0,107380.0,1.07039495]
[1751298308239,0.5062337,107390.0,107380.0,1.33975328]
[1751298308418,0.6483137,107390.0,107380.0,1.33975328]
[1751298308726,0.6483137,107390.0,107380.0,1.65763495]
[1751298309712,0.6483137,107390.0,107380.0,1.33975328]
[1751298313226,3.99e-05,107390.0,107380.0,2.01843495]
[1751298313422,3.99e-05,107390.0,107380.0,2.34843495]
[1751298314129,3.99e-05,107390.0,107380.0,2.40380147]
[1751298314826,3.99e-05,107390.0,107380.0,2.13380147]
[1751298315031,3.99e-05,107390.0,107380.0,2.07380147]
[1751298315324,3.99e-05,107390.0,107380.0,2.45380147]
[1751298315623,3.99e-05,107390.0,107380.0,2.11380147]
[1751298315831,3.99e-05,107390.0,107380.0,2.41380147]
[1751298317130,3.99e-05,107390.0,107380.0,2.43380147]
[1751298318535,3.99e-05,107390.0,107380.0,2.39706719]
[1751298319430,3.99e-05,107390.0,107380.0,2.03706719]
[1751298319732,3.99e-05,107390.0,107380.0,2.39706719]
[1751298321622,3.99e-05,107390.0,107380.0,2.41541366]
[1751298322023,3.99e-05,107390.0,107380.0,2.60166166]
[1751298322530,3.99e-05,107390.0,107380.0,3.26954333]
[1751298322730,3.99e-05,107390.0,107380.0,3.09338166]
[1751298323434,0.001,107430.0,107420.0,0.1861418]
[1751298323637,0.001,107430.0,107420.0,2.37952022]
[1751298323826,0.001,107430.0,107420.0,2.12952022]
[1751298324637,0.001,107430.0,107420.0,2.41952022]
[1751298324838,0.2198962,107450.0,107440.0,0.1861072]
[1751298325034,0.3159899,107450.0,107440.0,1.45158887]
[1751298325431,0.3159899,107450.0,107440.0,1.54958887]
[1751298325733,0.2831899,107450.0,107440.0,1.54958887]
[1751298325938,0.60107157,107450.0,107440.0,1.1337072]
[1751298326129,0.63387157,107450.0,107440.0,1.1337072]
[1751298326334,0.001,107450.0,107440.0,1.91038887]
[1751298326637,0.001,107450.0,107440.0,1.32358887]
[1751298326833,0.001,107450.0,107440.0,1.39888923]
[1751298327230,0.001,107450.0,107440.0,2.12760923]
[1751298327837,0.001,107450.0,107440.0,1.81898093]
[1751298328030,0.001,107450.0,107440.0,2.1368626]
[1751298328331,0.001,107450.0,107440.0,1.4081426]
[1751298328638,0.001,107450.0,107440.0,2.1368626]
[1751298328841,0.002,107450.0,107440.0,2.1368626]
[1751298329139,0.1880899,107450.0,107440.0,2.1367826]
[1751298329339,0.1880899,107450.0,107440.0,1.4081426]
[1751298329527,0.1880899,107450.0,107440.0,1.09026093]
[1751298329734,0.1880899,107450.0,107440.0,1.56956756]
[1751298329735,0.90247157,107450.0,107440.0,1.56956756]
[1751298329932,0.97107157,107450.0,107440.0,1.20876756]
[1751298330431,0.6531899,107450.0,107440.0,1.20876756]
[1751298330632,0.6177899,107450.0,107440.0,1.52664923]
[1751298330830,0.6177899,107450.0,107440.0,1.95674923]
[1751298331329,0.6177899,107450.0,107440.0,1.63886756]
[1751298331534,0.6177899,107450.0,107440.0,1.56956756]
[1751298331732,0.93567157,107450.0,107440.0,1.56952756]
[1751298332133,0.6177899,107450.0,107440.0,1.88740923]
[1751298332839,0.6177899,107450.0,107440.0,1.56952756]
[1751298333742,0.6177899,107450.0,107440.0,1.56948756]
[1751298334040,0.6177899,107450.0,107440.0,1.92066923]
[1751298334240,0.6177899,107450.0,107440.0,1.01630756]
[1751298334444,0.2577899,107450.0,107440.0,1.92062923]
[1751298334645,0.0385,107450.0,107440.0,1.92062923]
[1751298334937,0.2245899,107450.0,107440.0,1.95722923]
[1751298335129,0.002,107450.0,107440.0,1.95722923]
[1751298336340,0.002,107450.0,107440.0,2.6051109]
[1751298336641,0.002,107450.0,107440.0,2.38722923]
[1751298336830,0.001,107470.0,107460.0,0.1860725]
[1751298337034,0.351,107470.0,107460.0,1.4940325]
[1751298337244,0.001,107470.0,107460.0,1.8917325]
[1751298338030,0.001,107470.0,107460.0,2.20961417]
[1751298338435,0.1870552,107470.0,107460.0,0.99209111]
[1751298338634,0.1870552,107470.0,107460.0,1.30997278]
[1751298338931,0.001,107470.0,107460.0,2.03793278]
[1751298339134,0.1870552,107470.0,107460.0,2.03793278]
[1751298339334,0.1870552,107470.0,107460.0,1.72005111]
[1751298339539,0.0372,107470.0,107460.0,1.73005111]
[1751298339739,0.001,107470.0,107460.0,2.04793278]
[1751298340544,0.001,107470.0,107460.0,1.73005111]
[1751298340739,0.001,107470.0,107460.0,2.04793278]
[1751298341438,0.001,107470.0,107460.0,2.03793278]
[1751298341645,0.001,107470.0,107460.0,2.49972633]
[1751298341943,0.001,107470.0,107460.0,1.77176633]
[1751298342237,0.001,107470.0,107460.0,1.93172466]
[1751298342444,0.001,107470.0,107460.0,2.24960633]
[1751298342835,0.001,107470.0,107460.0,2.44960633]
[1751298343244,0.001,107470.0,107460.0,2.3945302]
[1751298344948,0.001,107470.0,107460.0,2.1845302]
[1751298345148,0.001,107470.0,107460.0,1.4566902]
[1751298345349,0.1870552,107470.0,107460.0,2.1844502]
[1751298345646,0.2228552,107470.0,107460.0,2.08003278]
[1751298345846,0.2902552,107470.0,107460.0,1.97003278]
[1751298346244,0.2902552,107470.0,107460.0,1.24227278]
[1751298346447,0.2902552,107470.0,107460.0,1.97003278]
[1751298346647,0.1042,107470.0,107460.0,1.65215111]
[1751298346852,0.001,107470.0,107460.0,2.00593278]
[1751298347048,0.001,107470.0,107460.0,2.04953278]
[1751298347239,0.001,107470.0,107460.0,2.3062502]
[1751298347446,0.001,107470.0,107460.0,2.3061702]
[1751298347756,0.001,107480.0,107470.0,0.1860552]
[1751298348054,0.001,107480.0,107470.0,1.29033687]
[1751298349653,0.00508395,107490.0,107480.0,0.1860379]
[1751298349847,0.00508395,107490.0,107480.0,1.76472444]
[1751298350350,0.00508395,107490.0,107480.0,1.03708444]
[1751298350550,0.00508395,107490.0,107480.0,1.76464444]
[1751298350750,0.00508395,107490.0,107480.0,1.77464444]
[1751298351350,0.00508395,107490.0,107480.0,2.11464444]
[1751298351757,0.00508395,107490.0,107480.0,1.87136186]
[1751298351951,0.00508395,107490.0,107480.0,2.06464444]
[1751298352152,0.00508395,107490.0,107480.0,2.10136186]
[1751298352349,0.00508395,107490.0,107480.0,2.06464444]
[1751298353265,0.00508395,107490.0,107480.0,1.73464444]
[1751298353456,0.00508395,107490.0,107480.0,1.84464444]
[1751298354356,0.00508395,107490.0,107480.0,1.47297634]
[1751298354667,0.00508395,107490.0,107480.0,1.84456444]
[1751298354956,0.00508395,107490.0,107480.0,1.88128186]
[1751298359058,0.00508395,107490.0,107480.0,2.08128186]
[1751298360058,0.00508395,107490.0,107480.0,1.70961376]
[1751298360259,0.00508395,107490.0,107480.0,2.08128186]
[1751298360460,0.00508395,107490.0,107480.0,1.45961376]
[1751298360768,0.00508395,107490.0,107480.0,2.12128186]
[1751298363661,0.006,107500.0,107490.0,0.5576886]
[1751298363856,0.006,107500.0,107490.0,1.3628886]
[1751298364262,0.001,107510.0,107500.0,0.1860032]
[1751298364463,0.001,107510.0,107500.0,1.70687728]
[1751298364663,0.001,107510.0,107500.0,1.74047728]
[1751298364968,0.035,107520.0,107510.0,0.1859859]
[1751298365265,0.035,107520.0,107510.0,1.03200316]
[1751298365472,0.035,107520.0,107510.0,0.66033506]
[1751298365870,0.035,107520.0,107510.0,0.73343706]
[1751298366265,0.035,107520.0,107510.0,0.66523706]
[1751298366464,0.0708,107520.0,107510.0,0.66523706]
[1751298366664,0.035,107520.0,107510.0,0.66523706]
[1751298366871,0.0715,107530.0,107520.0,0.1859686]
[1751298367070,0.0715,107530.0,107520.0,1.14904603]
[1751298367071,0.1071,107530.0,107520.0,1.14904603]
[1751298367370,0.2930514,107530.0,107520.0,1.14904603]
[1751298367871,0.1071,107530.0,107520.0,1.14904603]
[1751298368276,0.1071,107530.0,107520.0,1.33710603]
[1751298368572,0.0366,107530.0,107520.0,1.74549155]
[1751298368868,0.001,107540.0,107530.0,0.1859514]
[1751298369170,0.001,107540.0,107530.0,1.7169995]
[1751298369366,0.64469314,107560.0,107550.0,0.1859168]
[1751298369367,0.00502484,107560.0,107550.0,0.1859168]
[1751298369563,0.56562434,107560.0,107550.0,1.29055766]
[1751298369763,0.60022434,107560.0,107550.0,1.29055766]
[1751298370171,0.41432484,107560.0,107550.0,1.29055766]
[1751298370562,0.60022434,107560.0,107550.0,1.29055766]
[1751298370759,0.41432484,107560.0,107550.0,1.29055766]
[1751298370966,0.41432484,107560.0,107550.0,2.02302576]
[1751298370967,0.00502484,107560.0,107550.0,2.02302576]
[1751298371274,0.00502484,107560.0,107550.0,1.75705766]
[1751298371466,0.00502484,107560.0,107550.0,1.79377508]
[1751298371671,0.00502484,107560.0,107550.0,2.16544318]
[1751298372062,0.00502484,107560.0,107550.0,1.44856318]
[1751298372263,0.19092434,107560.0,107550.0,0.92447766]
[1751298372468,0.29712434,107560.0,107550.0,1.51435766]
[1751298372674,0.29712434,107560.0,107550.0,1.15355766]
[1751298372878,0.29712434,107560.0,107550.0,1.15375766]
[1751298373176,0.98879244,107560.0,107550.0,0.79327766]
[1751298373475,1.34959244,107560.0,107550.0,0.79335766]
[1751298373779,0.1859341,107540.0,107530.0,0.73150725]
[1751298374078,0.1859341,107540.0,107530.0,1.26739112]
[1751298374375,0.2921341,107540.0,107530.0,0.67643112]
[1751298374568,0.2921341,107540.0,107530.0,1.26767112]
[1751298374775,0.2921341,107540.0,107530.0,0.67643112]
[1751298375073,0.07,107540.0,107530.0,1.63965922]
[1751298375369,0.07,107540.0,107530.0,1.79555922]
[1751298375370,0.0338,107540.0,107530.0,1.79555922]
[1751298375576,0.0338,107540.0,107530.0,1.7593618]
[1751298375781,0.304713,107550.0,107540.0,0.1859341]
[1751298375970,0.7230811,107550.0,107540.0,0.7879341]
[1751298376178,1.0430811,107550.0,107540.0,0.7779341]
[1751298376374,1.0430811,107550.0,107540.0,1.1387341]
[1751298376375,0.391413,107550.0,107540.0,1.1387341]
[1751298376568,0.391413,107550.0,107540.0,0.7779341]
[1751298376768,1.0630811,107550.0,107540.0,0.1859341]
[1751298376968,1.0730811,107550.0,107540.0,0.7782141]
[1751298377377,0.701413,107550.0,107540.0,0.7782141]
[1751298377574,0.305813,107550.0,107540.0,0.79499713]
[1751298377876,0.341413,107550.0,107540.0,0.79499713]
[1751298379178,0.341413,107550.0,107540.0,1.15579713]
[1751298379680,0.109,107550.0,107540.0,1.15579713]
[1751298380378,0.2949168,107550.0,107540.0,1.15579713]
[1751298380679,0.2949168,107550.0,107540.0,1.15499713]
[1751298380880,0.6249168,107550.0,107540.0,1.15499713]
[1751298381179,0.9965849,107550.0,107540.0,1.15499713]
[1751298381374,0.9965849,107550.0,107540.0,0.56351713]
[1751298381575,0.9965849,107550.0,107540.0,1.15475713]
[1751298381978,0.6665849,107550.0,107540.0,1.15475713]
[1751298382278,0.109,107550.0,107540.0,1.15475713]
[1751298382482,0.0734,107550.0,107540.0,1.15475713]
[1751298382673,0.0734,107550.0,107540.0,1.22785713]
[1751298383969,0.0734,107550.0,107540.0,1.26295713]
[1751298385081,0.0367,107550.0,107540.0,1.26295713]
[1751298385271,0.07252484,107560.0,107550.0,0.1859168]
[1751298385476,0.46672484,107560.0,107550.0,0.1859168]
[1751298385680,0.46672484,107560.0,107550.0,0.5467168]
[1751298386280,0.46672484,107560.0,107550.0,0.5836168]
[1751298386480,0.10672484,107560.0,107550.0,0.5836168]
[1751298387672,0.03922484,107560.0,107550.0,0.5836168]
[1751298387883,0.03922484,107560.0,107550.0,0.6180168]
[1751298388575,0.00502484,107560.0,107550.0,0.7593368]
[1751298388774,0.00502484,107560.0,107550.0,1.1310049]
[1751298389176,0.002,107570.0,107560.0,0.1858995]
[1751298389479,0.002,107570.0,107560.0,1.63295213]
[1751298389779,0.2226477,107590.0,107580.0,0.1858649]
[1751298389979,0.3905,107590.0,107580.0,1.1398649]
[1751298390375,0.3905,107590.0,107580.0,0.5466649]
[1751298390579,0.3905,107590.0,107580.0,1.1399449]
[1751298390879,0.3568,107590.0,107580.0,1.1743449]
[1751298391181,0.3568,107590.0,107580.0,1.2090449]
[1751298391375,0.3097909,107600.0,107590.0,0.1858476]
[1751298391376,0.007,107600.0,107590.0,0.1858476]
[1751298391585,0.5976304,107600.0,107590.0,0.1858476]
[1751298391875,0.4118,107600.0,107590.0,0.5466476]
[1751298392077,0.377,107600.0,107590.0,0.6184476]
[1751298392283,0.377,107600.0,107590.0,1.1365557]
[1751298392472,0.377,107600.0,107590.0,0.7648876]
[1751298392473,0.007,107600.0,107590.0,0.7648876]
[1751298392670,0.007,107600.0,107590.0,1.1365557]
[1751298392871,0.007,107600.0,107590.0,1.7411557]
[1751298393277,0.007,107600.0,107590.0,1.81691191]
[1751298393473,0.19174492,107630.0,107620.0,0.1857958]
[1751298393678,0.19174422,107630.0,107620.0,0.7913958]
[1751298393874,0.00596572,107630.0,107620.0,1.2229958]
[1751298394073,0.00596572,107630.0,107620.0,1.7473439]
[1751298394278,0.00596572,107630.0,107620.0,1.3756758]
[1751298394605,0.00596572,107630.0,107620.0,1.7819439]
[1751298395285,0.00596572,107630.0,107620.0,1.7202758]
[1751298395486,0.185746,107650.0,107640.0,0.1857613]
[1751298395782,0.185746,107650.0,107640.0,0.56360129]
[1751298395783,0.375746,107650.0,107640.0,0.56360129]
[1751298395986,0.375746,107650.0,107640.0,0.63440129]
[1751298396187,0.19,107650.0,107640.0,0.63440129]
[1751298396387,0.19,107650.0,107640.0,1.00606939]
[1751298396688,0.2215421,107660.0,107650.0,0.1857446]
[1751298396877,0.56488207,107660.0,107650.0,1.20117752]
[1751298397078,0.56488207,107660.0,107650.0,1.38921752]
[1751298397389,0.56488207,107660.0,107650.0,1.46260776]
[1751298397686,0.1857446,107650.0,107640.0,0.01703999]
[1751298397885,0.94633752,107650.0,107640.0,0.01517996]